fUSD/lending_fUSD_20240508
["ID","MTS","AMOUNT","RATE_DAILY","PERIOD"]
[326611724,1715141441303,-571.5977784,0.00011177,2]
[326611725,1715141441317,-356.19588052,0.00011177,2]
[326611726,1715141441333,-3095.98569116,0.00011177,2]
[326611727,1715141441349,-1342.22,0.00011177,2]
[326611728,1715141441365,-1050.0,0.00011177,2]
[326611729,1715141441379,-552.33090042,0.00011177,2]
[326611730,1715141441394,-892.19844599,0.00011177,2]
[326611732,1715141442456,-471.123024,0.00011177,2]
[326611736,1715141442470,-188635.16893577,0.00011177,2]
[326611739,1715141442482,-53680.03876213,0.00011177,2]
[326611741,1715141442493,-250.0,0.00011178,2]
[326611745,1715141442506,-155.39633957,0.0001123,2]
[326611747,1715141442517,-526898.56947185,0.0001124,2]
[326611749,1715141442532,-1162.19,0.00011242,2]
[326611752,1715141442544,-3052.63,0.00011248,2]
[326611754,1715141442558,-999.99,0.00011248,2]
[326611756,1715141442571,-158.27,0.00011257,2]
[326611759,1715141442583,-499.99,0.00011257,2]
[326611761,1715141442595,-6689.94,0.00011288,2]
[326611763,1715141442605,-1475.35,0.00011318,2]
[326611765,1715141442615,-8756.65213705,0.00011487,2]
[326611767,1715141442625,-156.8291587,0.00011488,2]
[326611769,1715141442636,-158.77689389,0.00011488,2]
[326611771,1715141442647,-320.31484651,0.00011489,2]
[326611774,1715141442660,-151.9,0.00011619,2]
[326611776,1715141442672,-152.48,0.00011876,2]
[326611778,1715141442684,-991.32,0.00011882,2]
[326611781,1715141442696,-150.99,0.00011882,2]
[326611782,1715141442707,-1000.0,0.00011943,2]
[326611784,1715141442720,-150.59,0.00012,2]
[326611786,1715141442731,-169.36,0.00012035,2]
[326611788,1715141442742,-187.0,0.00012275,2]
[326611790,1715141442753,-558.13220435,0.00012416,2]
[326611792,1715141442766,-200.0,0.000125,4]
[326611794,1715141442778,-500.0,0.000126,4]
[326611796,1715141442788,-1561.86172371,0.00012628,2]
[326611799,1715141442801,-1331.94406699,0.00012641,2]
[326611801,1715141442812,-800.0,0.000127,4]
[326611803,1715141442823,-16941.4734,0.00012783,2]
[326611805,1715141442834,-1000.0,0.00012783,2]
[326611807,1715141442844,-558.13220436,0.00012783,2]
[326611809,1715141442856,-7500.0,0.00012783,2]
[326611811,1715141442867,-2500.0,0.00012783,2]
[326611813,1715141442878,-161.43190838,0.00012796,2]
[326611816,1715141442888,-35237.95366516,0.00012796,2]
[326611818,1715141442899,-1100.0,0.000128,4]
[326611820,1715141442909,-2919.58539,0.0001287,2]
[326611822,1715141442920,-150.59,0.00012873,2]
[326611824,1715141442932,-150.59,0.00012873,2]
[326611826,1715141442943,-245000.0,0.00012883,2]
[326611828,1715141442953,-150.59,0.00012886,2]
[326611831,1715141442964,-100000.0,0.00012896,2]
[326611833,1715141442974,-180.22651647,0.00012897,2]
[326611835,1715141442985,-158.06660266,0.000129,2]
[326611837,1715141442995,-170.06139776,0.000129,2]
[326611839,1715141443006,-1300.0,0.000129,4]
[326611841,1715141443016,-454.30730437,0.000129,2]
[326611843,1715141443029,-1188.32381542,0.000129,2]
[326611845,1715141443039,-614.47780235,0.000129,2]
[326611847,1715141443049,-3789.33975734,0.00012984,2]
[326611850,1715141443061,-150.59,0.0001299,2]
[326611852,1715141443072,-150.59,0.0001299,2]
[326611854,1715141443083,-150.59,0.0001299,2]
[326611856,1715141443094,-150.59,0.0001299,2]
[326611858,1715141443105,-150.59,0.0001299,2]
[326611860,1715141443116,-150.59,0.0001299,2]
[326611862,1715141443127,-150.59,0.0001299,2]
[326611864,1715141443138,-150.59,0.0001299,2]
[326611866,1715141443148,-150.59,0.0001299,2]
[326611869,1715141443159,-150.59,0.0001299,2]
[326611871,1715141443170,-150.59,0.0001299,2]
[326611873,1715141443181,-150.59,0.0001299,2]
[326611875,1715141443192,-150.59,0.0001299,2]
[326611877,1715141443202,-150.59,0.0001299,2]
[326611879,1715141443213,-150.59,0.0001299,2]
[326611881,1715141443224,-150.59,0.0001299,2]
[326611883,1715141443235,-150.59,0.0001299,2]
[326611885,1715141443246,-150.59,0.0001299,2]
[326611888,1715141443257,-150.59,0.0001299,2]
[326611890,1715141443267,-150.59,0.0001299,2]
[326611892,1715141443279,-150.59,0.0001299,2]
[326611894,1715141443290,-150.59,0.0001299,2]
[326611896,1715141443301,-150.59,0.0001299,2]
[326611898,1715141443313,-150.59,0.0001299,2]
[326611901,1715141443325,-150.59,0.0001299,2]
[326611903,1715141443336,-150.59,0.0001299,2]
[326611905,1715141443347,-150.59,0.0001299,2]
[326611907,1715141443358,-150.59,0.0001299,2]
[326611909,1715141443368,-150.59,0.0001299,2]
[326611911,1715141443379,-427.79115464,0.00012992,2]
[326611913,1715141443391,-180.34250819,0.00012994,2]
[326611915,1715141443403,-155.67025974,0.00012994,2]
[326611917,1715141443415,-261.93203875,0.00012995,2]
[326611920,1715141443427,-208.09059218,0.00012995,2]
[326611922,1715141443439,-5603.45682415,0.00012995,2]
[326611924,1715141443450,-155.33465603,0.00012995,2]
[326611926,1715141443462,-195.42376414,0.00012995,2]
[326611928,1715141443474,-326.74821668,0.00012995,2]
[326611931,1715141443485,-210.0069287,0.00012995,2]
[326611933,1715141443496,-238.79569358,0.00012995,2]
[326611935,1715141443507,-266.64253667,0.00012995,2]
[326611937,1715141443519,-290.6215403,0.00012995,2]
[326611939,1715141443532,-317.3859839,0.00012995,2]
[326611941,1715141443543,-856.31544273,0.00012995,2]
[326611944,1715141443554,-205.94200728,0.00012995,2]
[326611945,1715141443564,-155.5619179,0.00012995,2]
[326611947,1715141443573,-197.26427031,0.00012995,2]
[326611966,1715141443583,-806.68662647,0.00012995,2]
[326611970,1715141443770,-1484.07021499,0.00012995,2]
[326611972,1715141443783,-174.98987786,0.00012995,2]
[326611974,1715141443794,-158.23614862,0.00012996,2]
[326611976,1715141443804,-1246.09934056,0.00012996,2]
[326611978,1715141443814,-156.30396702,0.00012996,2]
[326611980,1715141443823,-866.7335477,0.00012996,2]
[326611982,1715141443832,-204.7960553,0.00012996,2]
[326611984,1715141443842,-203.50646997,0.00012996,2]
[326611986,1715141443851,-35306.4644968,0.00012997,2]
[326611988,1715141443860,-155.26973027,0.00012998,2]
[326611990,1715141443870,-509.59808044,0.00012998,2]
[326611992,1715141443880,-5278.62244997,0.00012998,2]
[326611994,1715141443889,-155.13266556,0.00012999,2]
[326611995,1715141443899,-690.29274518,0.00012999,2]
[326611997,1715141443908,-4434.66293808,0.00012999,2]
[326611999,1715141443917,-7342.42,0.00013,2]
[326612001,1715141443926,-3033.16459065,0.00013,2]
[326612004,1715141443939,-2514.14874685,0.00013,2]
[326612006,1715141443950,-1478.26174416,0.00013,2]
[326612008,1715141443961,-8001.254,0.00013,2]
[326612010,1715141443972,-1753.89266644,0.00013,2]
[326612012,1715141443983,-4190.85538286,0.00013,2]
[326612013,1715141443995,-1287261.89401874,0.00013,2]
[326612014,1715141444004,-329.65099711,0.00013,2]
[326612015,1715141444014,-188.70189088,0.00013,2]
[326612016,1715141444023,-1873542.2556191,0.00013,2]
[326612017,1715141444035,-1021575.86988497,0.00013,2]
[326612018,1715141444045,-2000.0,0.00013,2]
[326612019,1715141444055,-200.0,0.00013,2]
[326612020,1715141444064,-492.08,0.00013081,2]
[326612021,1715141444073,-492.08,0.00013084,2]
[326612022,1715141444083,-492.08,0.00013088,2]
[326612023,1715141444092,-492.08,0.00013091,2]
[326612024,1715141444101,-492.08,0.00013095,2]
[326612025,1715141444111,-492.08,0.00013098,2]
[326612026,1715141444120,-492.08,0.00013102,2]
[326612027,1715141444129,-484.12810702,0.00013105,2]
[326612028,1715141444141,-7.95189298,0.00013105,2]
[326612029,1715141444150,-492.08,0.00013108,2]
[326612031,1715141444160,-492.08,0.00013112,2]
[326612033,1715141444169,-492.08,0.00013115,2]
[326612035,1715141444178,-492.08,0.00013119,2]
[326612037,1715141444188,-150.59,0.00013119,2]
[326612038,1715141444197,-171.48301798,0.00013122,2]
[326612057,1715141444311,-320.59698202,0.00013122,2]
[326612059,1715141444321,-492.08,0.00013126,2]
[326612061,1715141444330,-492.08,0.00013129,2]
[326612063,1715141444340,-995.9726025,0.0001313,2]
[326612065,1715141444349,-200.0,0.0001313,2]
[326612067,1715141444359,-492.08,0.00013133,2]
[326612069,1715141444368,-40.88900461,0.00013136,2]
[326612071,1715141444380,-451.19099539,0.00013136,2]
[326612073,1715141444391,-492.08,0.0001314,2]
[326612075,1715141444400,-492.08,0.00013143,2]
[326612077,1715141444410,-492.08,0.00013146,2]
[326612079,1715141444419,-280.48,0.00013151,2]
[326612081,1715141444429,-790.76,0.00013151,2]
[326612083,1715141444438,-200.0,0.00013261,2]
[326612085,1715141444448,-152.48,0.0001336,2]
[326612087,1715141444457,-200.0,0.00013394,2]
[326612089,1715141444467,-625.97,0.00013425,2]
[326612091,1715141444478,-653.17,0.00013425,2]
[326612093,1715141444487,-1000.0,0.00013436,2]
[326612095,1715141444496,-200.0,0.00013528,2]
[326612097,1715141444506,-333.55,0.00013669,2]
[326612099,1715141444515,-200.0,0.00013699,2]
[326612102,1715141444525,-1688.485322,0.00013699,2]
[326612104,1715141444538,-1223.34715648,0.00013699,2]
[326612279,1715141446331,-299.87273782,0.00011176,2]
[326612280,1715141446341,-469.67265607,0.00011176,2]
[326612281,1715141446351,-222.41,0.00011488,2]
[326612282,1715141446360,-212.10959149,0.000129,2]
[326612283,1715141446371,-956.36752152,0.00013699,2]
[326612284,1715141446382,-500.0,0.00013699,2]
[326612285,1715141446392,-2751.0,0.00013699,2]
[326612286,1715141446401,-1162.19,0.00013982,2]
[326612287,1715141446411,-282.1344729,0.00014,2]
[326612288,1715141446422,-1688.26373433,0.00014,2]
[326612289,1715141447666,-165.19944659,0.00012999,2]
[326612290,1715141447676,-14087.94864054,0.00014,2]
[326612291,1715141447686,-155.10176546,0.00014,2]
[326612292,1715141447696,-368.07,0.00014204,2]
[326612293,1715141447705,-152.48,0.00014845,2]
[326612294,1715141447718,-1000.0,0.00014929,2]
[326612295,1715141447729,-200.0,0.00015,2]
[326612296,1715141447739,-155.93242913,0.00015,2]
[326612297,1715141447748,-4213.84844279,0.00015,2]
[326612298,1715141447759,-257.33892331,0.00015,2]
[326612299,1715141447767,-192.10040177,0.00015,2]
[326612300,1715141447776,-618.27704425,0.00015,2]
[326612301,1715141447787,-168.27103263,0.00015,2]
[326612302,1715141447798,-300.0,0.00015068,2]
[326612303,1715141447809,-333.55,0.00015188,2]
[326612304,1715141447818,-854.51,0.0001531,2]
[326612305,1715141447828,-3379.09,0.0001531,2]
[326612306,1715141447838,-10981.83466752,0.0001531,2]
[326612309,1715141640815,358.55,0.00024748,120]
[326612328,1715142163320,232.5,0.00025,120]
[326612329,1715142220946,-364.43738057,0.00013226,2]
[326612330,1715142220970,-165.39781373,0.00013227,2]
[326612331,1715142220991,-16366.3495,0.00013234,2]
[326612332,1715142221018,-427.79115464,0.00013991,2]
[326612333,1715142221040,-188.97420828,0.00013998,2]
[326612334,1715142221062,-553.71963809,0.00013999,2]
[326612335,1715142221085,-157.62917444,0.00013999,2]
[326612336,1715142221107,-282.1344729,0.00014,2]
[326612337,1715142221129,-640.80208893,0.00014972,2]
[326612338,1715142221149,-8088.00084988,0.00015,2]
[326612339,1715142221171,-257.33892331,0.00015,2]
[326612340,1715142221191,-200.0,0.00015188,2]
[326612341,1715142221212,-4307.42479523,0.00015188,2]
[326612362,1715142632013,-282.1344729,0.00014867,2]
[326612364,1715142632023,-166.62373915,0.00014868,2]
[326612366,1715142632033,-1970.77123787,0.00014966,2]
[326612368,1715142632042,-3569.9121,0.00014968,2]
[326612370,1715142632052,-262.233407,0.00015068,2]
[326612372,1715142632061,-461.9483538,0.00015188,2]
[326612373,1715142632073,-575.92789734,0.00015188,2]
[326612375,1715142632082,-155.25,0.00015188,2]
[326612376,1715142632091,-1432.42990211,0.000152,2]
[326612378,1715142632100,-200.0,0.00015308,2]
[326612379,1715142632109,-466.16042969,0.00015308,2]
[326612380,1715142632119,-618.85701396,0.00015308,2]
[326612381,1715142632128,-5255.79,0.00015308,2]
[326612382,1715142632138,-224.99,0.00015308,2]
[326612383,1715142632147,-317.3859839,0.00015309,2]
[326612384,1715142632158,-2499.28323416,0.00015309,2]
[326612385,1715142632170,-2432.98783,0.0001531,2]
[326612386,1715142632180,-118.5227999,0.0001531,2]
[326612387,1715142634096,-183.4572001,0.0001531,2]
[326612388,1715142634105,-97.10947422,0.0001531,2]
[326612389,1715142634117,-350.98052578,0.0001531,2]
[326612390,1715142634126,-46.10331843,0.0001531,2]
[326612391,1715142634136,-2189.4,0.0001531,2]
[326612392,1715142634148,-439.73668157,0.0001531,2]
[326612393,1715142634157,-257.68785346,0.00015407,2]
[326612394,1715142634168,-91.05236484,0.00015408,2]
[326612395,1715142634179,-74.21320413,0.00015408,2]
[326612396,1715142634189,-365.42691948,0.00015408,2]
[326612397,1715142634198,-871.88297652,0.00015408,2]
[326612398,1715142638409,-365.26900912,0.00015408,2]
[326612422,1715142638531,-2330.12255804,0.00015408,2]
[326612424,1715142638542,-1761.55314727,0.00015408,2]
[326612426,1715142638553,-771.65526251,0.00015408,2]
[326612617,1715142640424,-8152.42704654,0.00015408,2]
[326612620,1715142640445,-560.24,0.00015408,2]
[326612622,1715142640454,-499.99,0.00015408,2]
[326612624,1715142640464,-35237.95366508,0.00015409,2]
[326612626,1715142640474,-167.37,0.00015831,2]
[326612628,1715142640484,-194.41,0.00015831,2]
[326612630,1715142640494,-262.233407,0.0001589,2]
[326612632,1715142640503,-1587.74617919,0.00016,2]
[326612634,1715142640513,-2751.0,0.00016157,2]
[326612636,1715142640522,-200.0,0.00016157,2]
[326612638,1715142640532,-250.0,0.00016162,2]
[326612640,1715142640541,-497.45,0.00016172,2]
[326612642,1715142640550,-1000.0,0.00016195,2]
[326612644,1715142640560,-7123.22,0.00016205,2]
[326612646,1715142640569,-521.64,0.00016223,2]
[326612648,1715142640578,-42027.93,0.00016223,2]
[326612650,1715142640589,-158.91730644,0.00016277,2]
[326612652,1715142640598,-500.0,0.00016299,2]
[326612654,1715142640608,-159.58314488,0.00016307,2]
[326612656,1715142640617,-544.3,0.00016314,2]
[326612658,1715142640627,-800.0,0.00016438,2]
[326612659,1715142640636,-358.55,0.00016499,2]
[326612660,1715142640646,-1225.84618609,0.000165,2]
[326612661,1715142640656,-151.9145512,0.00016656,2]
[326612662,1715142640666,-795.0,0.000167,2]
[326612663,1715142640675,-167.37,0.00016702,2]
[326612664,1715142640684,-262.233407,0.00016712,2]
[326612665,1715142640693,-182.43,0.00016712,2]
[326612666,1715142640704,-153.8305885,0.0001683,2]
[326612667,1715142640714,-167.0,0.00016883,2]
[326612668,1715142640724,-1750.30214279,0.00017,2]
[326612669,1715142640734,-3660.0,0.00017,2]
[326612670,1715142640744,-300.0,0.00017201,2]
[326612671,1715142640753,-155.94755228,0.00017374,2]
[326612672,1715142640763,-167.0,0.0001744,2]
[326612673,1715142640773,-159.58314488,0.00017493,2]
[326612674,1715142640783,-262.233407,0.00017534,2]
[326612676,1715142640792,-167.37,0.00017573,2]
[326612678,1715142640801,-800.0,0.00017671,2]
[326612680,1715142640812,-154.19350589,0.00017749,2]
[326612682,1715142640821,-194.41,0.0001781,2]
[326612683,1715142640830,-800.0,0.00017836,2]
[326612686,1715142640840,-864.9,0.0001786,3]
[326612688,1715142640849,-494.27,0.0001787,3]
[326612690,1715142640859,-576.59,0.0001787,3]
[326612692,1715142640868,-288.29,0.0001787,3]
[326612694,1715142640877,-3794.28770255,0.0001788,2]
[326612696,1715142640887,-151.9145512,0.00017935,2]
[326612698,1715142640896,-800.0,0.00017973,2]
[326612700,1715142640906,-167.0,0.00017998,2]
[326612701,1715142640915,-750.0,0.00018,3]
[326612704,1715142640924,-8437.60868124,0.00018023,2]
[326612747,1715142641885,-1505.4303636,0.00018023,2]
[326612748,1715142643054,-1127.54772856,0.00018023,2]
[326612761,1715142645057,-410.67433502,0.00018023,2]
[326612762,1715142645069,-460.32635449,0.00018023,2]
[326612763,1715142645080,-1134.26925039,0.00018023,2]
[326612764,1715142647378,-3228.96439913,0.00018023,2]
[326612767,1715142647389,-431.03855095,0.00018023,2]
[326612768,1715142647400,-1526.69999999,0.00018023,2]
[326612770,1715142647411,-1258.108,0.00018023,2]
[326612777,1715142869078,1020.86483568,6.94e-05,2]
[326612778,1715142904719,-3500.0,0.00010958,2]
[326612779,1715142904744,-288.29,0.00010959,2]
[326612780,1715142904768,-240.24,0.00010959,2]
[326612781,1715142904792,-200.2,0.00010959,2]
[326612782,1715142904816,-166.83,0.00010959,2]
[326612783,1715142904840,-166.83,0.00010959,2]
[326612784,1715142904864,-667.37,0.00010959,2]
[326612785,1715142904889,-166.62373914,0.000117,2]
[326612786,1715142904912,-2219.29181573,0.00011799,2]
[326612787,1715142904938,-138301.30936847,0.000118,2]
[326612788,1715142904964,-3110230.41657666,0.00013,2]
[326612790,1715143731613,-3640.86046795,0.00012784,2]
[326612791,1715143731629,-4718.2790641,0.00012784,2]
[326612792,1715143731639,-217.09655827,0.00012785,2]
[326612793,1715143731648,-1270.93207056,0.00012785,2]
[326612794,1715143731657,-430.82115976,0.00012786,2]
[326612795,1715143731668,-1722.01067936,0.000128,2]
[326612806,1715143833042,-642.57733329,0.00012799,2]
[326612808,1715143833051,-405.069853,0.000128,2]
[326612811,1715143833063,-372.91946764,0.000128,2]
[326612813,1715143833073,-150.0,0.00012877,2]
[326612815,1715143833082,-150.0,0.00012897,2]
[326612817,1715143833091,-5262.86149055,0.00012898,2]
[326612819,1715143833100,-5277.37481561,0.00012898,2]
[326612821,1715143833109,-247.66862018,0.00012898,2]
[326612823,1715143833118,-217.42750487,0.00012898,2]
[326612825,1715143833126,-14.28621794,0.00012898,2]
[326612827,1715143833138,-1132.19756582,0.00012898,2]
[326612829,1715143833147,-783.49796572,0.00012899,2]
[326612831,1715143833156,-2484.08437167,0.00012899,2]
[326612833,1715143833167,-2880.36659732,0.00012899,2]
[326612835,1715143833179,-872.81,0.00012899,2]
[326612837,1715143833190,-1291.36512063,0.00012899,2]
[326612840,1715143833200,-844.36076712,0.00012899,2]
[326612842,1715143833209,-192.61171264,0.000129,2]
[326612844,1715143833218,-903.96769199,0.000129,2]
[326612869,1715143838720,-1592.65686539,0.000129,2]
[326612874,1715143838735,-942.96050353,0.000129,2]
[326612878,1715143838746,-241560.41493909,0.000129,2]
[326612881,1715143838756,-1000.0,0.000129,2]
[326612884,1715143838765,-156.20020624,0.000129,2]
[326612887,1715143838774,-2960.21972113,0.000129,2]
[326612890,1715143838784,-792.21587694,0.000129,2]
[326612893,1715143838794,-302.87153624,0.000129,2]
[326612896,1715143838803,-150.59,0.0001299,2]
[326612899,1715143838812,-150.59,0.0001299,2]
[326612902,1715143838821,-150.59,0.0001299,2]
[326612904,1715143838829,-150.59,0.0001299,2]
[326612907,1715143838838,-150.59,0.0001299,2]
[326612910,1715143838848,-150.59,0.0001299,2]
[326612913,1715143838857,-150.59,0.0001299,2]
[326612916,1715143838866,-150.59,0.0001299,2]
[326612918,1715143838876,-150.59,0.0001299,2]
[326612920,1715143838885,-150.59,0.0001299,2]
[326612922,1715143838894,-150.59,0.0001299,2]
[326612924,1715143838904,-150.59,0.0001299,2]
[326612926,1715143838917,-150.59,0.0001299,2]
[326612928,1715143838926,-150.59,0.0001299,2]
[326612930,1715143838936,-150.59,0.0001299,2]
[326612932,1715143838945,-150.59,0.0001299,2]
[326612934,1715143838954,-150.59,0.0001299,2]
[326612936,1715143838964,-150.59,0.0001299,2]
[326612937,1715143838973,-150.59,0.0001299,2]
[326612938,1715143838988,-150.59,0.0001299,2]
[326612939,1715143838998,-155.0,0.00012998,2]
[326612940,1715143839009,-1702.0925931,0.00012999,2]
[326612941,1715143839019,-2368.76242815,0.00012999,2]
[326612942,1715143839028,-9859.89729175,0.00012999,2]
[326612943,1715143839039,-306.66026098,0.00012999,2]
[326612944,1715143839048,-499.99,0.00012999,2]
[326612945,1715143839058,-738437.87263329,0.00013,2]
[326612946,1715143839072,-457.34443648,0.00013,2]
[326612947,1715143839085,-271.330595,0.00013,2]
[326612948,1715143839101,-6864.62995654,0.00013,2]
[326612949,1715143839114,-2183.16426548,0.00013,2]
[326612952,1715143839127,-531.79482725,0.00013,2]
[326613115,1715143840728,-165.933983,0.000129,2]
[326613118,1715143840738,-3240.56183651,0.00013,2]
[326613122,1715143840751,-623.26266108,0.00013,2]
[326613125,1715143840763,-2500.0,0.00013,2]
[326613128,1715143840774,-982.0491942,0.00013,2]
[326613131,1715143840786,-278.76430617,0.00013,2]
[326613134,1715143840797,-733.881,0.00013,2]
[326613138,1715143840810,-2940.96388949,0.00013,2]
[326613234,1715143844631,-25439.5012295,0.00013,2]
[326613235,1715143844737,-1.373e-05,0.00013,2]
[326613236,1715143844750,-2991.72452972,0.00013,2]
[326613237,1715143844762,-3017.89136681,0.00013,2]
[326613238,1715143844848,-3953.96877927,0.00013,2]
[326613239,1715143844859,-1346.80688052,0.00013,2]
[326613240,1715143844870,-228261.66592385,0.00013,2]
[326613241,1715143844882,-382.55321275,0.00013,2]
[326613242,1715143844893,-8904.52939792,0.00013,2]
[326613243,1715143844905,-2666.48384142,0.00013,2]
[326613244,1715143844916,-2951.52100116,0.00013,2]
[326613245,1715143844928,-432.16,0.00013,2]
[326613248,1715143847312,-254176.64517702,0.00013,2]
[326613249,1715143847324,-967.07135933,0.00013,2]
[326613250,1715143847335,-9657.94829999,0.00013,2]
[326613251,1715143847347,-2177.03395741,0.00013,2]
[326613254,1715144182931,500.0,0.00021975,90]
[326613255,1715144204100,449.0,0.00025,120]
[326613261,1715144688507,-165.39781373,0.00012042,2]
[326613262,1715144688531,-250.0,0.00012043,2]
[326613263,1715144688554,-157.52711635,0.000121,2]
[326613264,1715144688576,-209.5946372,0.000121,2]
[326613265,1715144688598,-262.72038004,0.000121,2]
[326613266,1715144688620,-535.00984553,0.00012101,2]
[326613267,1715144688643,-155.0,0.00012102,2]
[326613268,1715144688664,-155.0,0.00012102,2]
[326613269,1715144688687,-306.65890382,0.00012118,2]
[326613270,1715144688710,-6303.09130333,0.0001214,2]
[326613271,1715144957483,760.0,0.00025,120]
[326613272,1715145032726,-3185.94146673,0.00012065,2]
[326613274,1715145032739,-1492.99751267,0.00012065,2]
[326613276,1715145032751,-609.67999998,0.00012065,2]
[326613278,1715145032762,-792.5901174,0.00012065,2]
[326613280,1715145032774,-6555.54991636,0.00012065,2]
[326613282,1715145032783,-535.00984553,0.00012065,2]
[326613284,1715145032792,-5049.67,0.00012066,2]
[326613286,1715145032802,-478.39,0.00012117,2]
[326613288,1715145032811,-5294.9492,0.00012141,2]
[326613289,1715145032821,-6132.94432686,0.00012348,7]
[326613291,1715145032831,-158.91,0.00012378,2]
[326613292,1715145032842,-158.91,0.00012427,2]
[326613293,1715145032852,-158.91,0.00012477,2]
[326613294,1715145032861,-158.91,0.00012527,2]
[326613295,1715145032870,-158.91,0.00012576,2]
[326613296,1715145032880,-1561.86172371,0.00012618,2]
[326613297,1715145032891,-158.91,0.00012626,2]
[326613298,1715145032901,-158.91,0.00012675,2]
[326613299,1715145032910,-158.91,0.00012725,2]
[326613300,1715145032919,-158.91,0.00012775,2]
[326613301,1715145032929,-1007.7219611,0.00012799,2]
[326613302,1715145032938,-346.5333,0.000128,2]
[326613303,1715145032948,-1000.0,0.000128,2]
[326613304,1715145032958,-844.7978,0.000128,2]
[326613305,1715145032967,-468.9609,0.000128,2]
[326613306,1715145032977,-2347.0103,0.000128,2]
[326613307,1715145032986,-499.99,0.000128,2]
[326613308,1715145032995,-2500.0,0.000128,2]
[326613309,1715145033005,-3500.94133622,0.00012808,2]
[326613310,1715145033014,-158.91,0.00012824,2]
[326613311,1715145033024,-73225.95073519,0.0001287,2]
[326613312,1715145033033,-2527.48986,0.0001287,2]
[326613313,1715145033047,-158.91,0.00012874,2]
[326613314,1715145033056,-155.76867218,0.00012898,2]
[326613315,1715145033066,-301.18342635,0.00012898,2]
[326613316,1715145033075,-194.1075659,0.00012899,2]
[326613317,1715145033086,-305.85004224,0.00012899,2]
[326613318,1715145033094,-165.26556897,0.00012899,2]
[326613319,1715145033104,-205.95861649,0.00012899,2]
[326613320,1715145033113,-356.04318423,0.00012899,2]
[326613321,1715145033124,-362.30854944,0.000129,2]
[326613322,1715145033134,-190314.92489827,0.000129,2]
[326613323,1715145033146,-522.3297664,0.000129,2]
[326613324,1715145033158,-3705.18453,0.000129,2]
[326613325,1715145033169,-630.10225962,0.000129,2]
[326613349,1715145039381,-331.88,0.0001289,2]
[326613350,1715145039391,-3793.88288333,0.000129,2]
[326613351,1715145039402,-2603.10643675,0.000129,2]
[326613352,1715145039413,-580.4,0.000129,2]
[326613353,1715145039424,-42850.06922563,0.000129,2]
[326613354,1715145039434,-167.18647926,0.000129,2]
[326613355,1715145039443,-29284.40573368,0.000129,2]
[326613356,1715145039453,-176.12888221,0.000129,2]
[326613357,1715145039462,-2590.19225598,0.000129,2]
[326613358,1715145039472,-186.23514483,0.000129,2]
[326613359,1715145039481,-194.48369158,0.000129,2]
[326613360,1715145039491,-331.53792838,0.000129,2]
[326613361,1715145039500,-158.91,0.00012924,2]
[326613362,1715145039509,-158.91,0.00012973,2]
[326613363,1715145039519,-600.0,0.00012986,2]
[326613364,1715145039528,-180.00460453,0.0001299,2]
[326613365,1715145039538,-180.00460453,0.0001299,2]
[326613366,1715145039547,-180.00460453,0.0001299,2]
[326613367,1715145039556,-150.59,0.0001299,2]
[326613368,1715145039565,-150.59,0.0001299,2]
[326613369,1715145039575,-150.59,0.0001299,2]
[326613370,1715145039584,-150.59,0.0001299,2]
[326613371,1715145039596,-150.59,0.0001299,2]
[326613372,1715145039605,-150.59,0.0001299,2]
[326613373,1715145039614,-150.59,0.0001299,2]
[326613374,1715145039623,-331.88,0.0001299,2]
[326613375,1715145039632,-331.88,0.0001299,2]
[326613376,1715145039642,-331.88,0.0001299,2]